[Event "*** Titled Tuesday 3|2 Blitz (Early)"]
[Site "Chess.com"]
[Date "2016.12.06"]
[Round "2"]
[White "ZhuChenChess"]
[Black "AdrianaNikolova"]
[Result "1/2-1/2"]
[WhiteElo "2400"]
[BlackElo "2238"]
[TimeControl "180+2"]
[EndTime "11:24:10 PST"]
[Termination "Game drawn by repetition"]

1. d4 {[%clk 0:03:02]} 1... d5 {[%clk 0:02:59.9]} 2. c4 {[%clk 0:03:02.7]} 2...
c6 {[%clk 0:03:00.8]} 3. Nf3 {[%clk 0:03:03.2]} 3... Nf6 {[%clk 0:03:01.3]} 4.
Nc3 {[%clk 0:03:04.1]} 4... dxc4 {[%clk 0:02:53.6]} 5. a4 {[%clk 0:03:04.1]}
5... Bf5 {[%clk 0:02:52.3]} 6. e3 {[%clk 0:02:59.5]} 6... e6 {[%clk 0:02:52.8]}
7. Bxc4 {[%clk 0:02:58.9]} 7... Bb4 {[%clk 0:02:52.6]} 8. Nh4 {[%clk 0:02:52]}
8... Be4 {[%clk 0:02:52.2]} 9. O-O {[%clk 0:02:45.7]} 9... Nbd7 {[%clk
0:02:34.6]} 10. Nxe4 {[%clk 0:02:19.6]} 10... Nxe4 {[%clk 0:02:36.5]} 11. Nf3
{[%clk 0:02:02.6]} 11... O-O {[%clk 0:02:37.3]} 12. Bd3 {[%clk 0:01:43.2]} 12...
Ng5 {[%clk 0:02:20.2]} 13. Nxg5 {[%clk 0:01:39.8]} 13... Qxg5 {[%clk 0:02:22.1]}
14. e4 {[%clk 0:01:40.9]} 14... Qg6 {[%clk 0:02:01]} 15. e5 {[%clk 0:01:39.5]}
15... f5 {[%clk 0:02:02.5]} 16. exf6 {[%clk 0:01:38.1]} 16... Qxf6 {[%clk
0:02:03.6]} 17. Qh5 {[%clk 0:01:19.3]} 17... g6 {[%clk 0:02:04.3]} 18. Qh3
{[%clk 0:01:18.4]} 18... Rae8 {[%clk 0:02:03.4]} 19. Bh6 {[%clk 0:01:13.8]}
19... Rf7 {[%clk 0:02:02.8]} 20. Be3 {[%clk 0:00:48.1]} 20... Bd6 {[%clk
0:02:02.1]} 21. Rae1 {[%clk 0:00:45.7]} 21... Nb6 {[%clk 0:02:00.3]} 22. b3
{[%clk 0:00:44.7]} 22... Nd5 {[%clk 0:02:00.2]} 23. Bc4 {[%clk 0:00:43.6]} 23...
Ref8 {[%clk 0:01:53.1]} 24. Bh6 {[%clk 0:00:37.3]} 24... Re8 {[%clk 0:01:52.6]}
25. Re4 {[%clk 0:00:35.9]} 25... Qf5 {[%clk 0:01:41.8]} 26. Qxf5 {[%clk
0:00:36.1]} 26... gxf5 {[%clk 0:01:40.6]} 27. Ree1 {[%clk 0:00:36.1]} 27... f4
{[%clk 0:01:37.2]} 28. Bg5 {[%clk 0:00:33.1]} 28... Rf5 {[%clk 0:01:37.2]} 29.
Bh4 {[%clk 0:00:33.8]} 29... Kf7 {[%clk 0:01:24]} 30. Bxd5 {[%clk 0:00:17.5]}
30... exd5 {[%clk 0:01:01.8]} 31. Rxe8 {[%clk 0:00:17.2]} 31... Kxe8 {[%clk
0:01:03.7]} 32. Re1+ {[%clk 0:00:17.5]} 32... Kd7 {[%clk 0:00:58.1]} 33. f3
{[%clk 0:00:17.4]} 33... Rh5 {[%clk 0:00:54.6]} 34. Bf2 {[%clk 0:00:17.7]} 34...
Rh6 {[%clk 0:00:48.4]} 35. h3 {[%clk 0:00:15.8]} 35... Re6 {[%clk 0:00:49.2]}
36. Kf1 {[%clk 0:00:16.6]} 36... Bb4 {[%clk 0:00:48.5]} 37. Rxe6 {[%clk
0:00:16.6]} 37... Kxe6 {[%clk 0:00:50.4]} 38. Ke2 {[%clk 0:00:17.9]} 38... b5
{[%clk 0:00:44.4]} 39. Kd3 {[%clk 0:00:17.4]} 39... h5 {[%clk 0:00:35.9]} 40.
Bh4 {[%clk 0:00:18.3]} 40... a6 {[%clk 0:00:31.5]} 41. Bg5 {[%clk 0:00:19.3]}
41... Kf5 {[%clk 0:00:33]} 42. Bd8 {[%clk 0:00:20.3]} 42... Be1 {[%clk
0:00:31.9]} 43. Be7 {[%clk 0:00:20.6]} 43... Ba5 {[%clk 0:00:29.2]} 44. Bf8
{[%clk 0:00:20.6]} 44... Bb6 {[%clk 0:00:28]} 45. Be7 {[%clk 0:00:21.3]} 45...
Ba5 {[%clk 0:00:29.2]} 46. Bh4 {[%clk 0:00:22.3]} 46... Bb4 {[%clk 0:00:29.5]}
47. Bf2 {[%clk 0:00:22.9]} 47... Ba5 {[%clk 0:00:30.5]} 48. g3 {[%clk
0:00:24.2]} 48... fxg3 {[%clk 0:00:29.2]} 49. Bxg3 {[%clk 0:00:25.4]} 49... Bb4
{[%clk 0:00:28.5]} 50. Bc7 {[%clk 0:00:25.4]} 50... Be1 {[%clk 0:00:29.3]} 51.
Ke3 {[%clk 0:00:26.4]} 51... Bc3 {[%clk 0:00:30.1]} 52. Kd3 {[%clk 0:00:26.6]}
52... Be1 {[%clk 0:00:30.8]} 53. Bd6 {[%clk 0:00:27.2]} 53... Ba5 {[%clk
0:00:27.1]} 54. Ke3 {[%clk 0:00:28.1]} 54... Bc3 {[%clk 0:00:27.2]} 55. Kd3
{[%clk 0:00:28.1]} 55... Be1 {[%clk 0:00:25.5]} 56. Ke3 {[%clk 0:00:27.7]} 56...
Bc3 {[%clk 0:00:25.2]} 57. Bc5 {[%clk 0:00:28.6]} 57... Be1 {[%clk 0:00:23.3]}
58. Ke2 {[%clk 0:00:29.5]} 58... Bc3 {[%clk 0:00:23.9]} 59. Kf2 {[%clk
0:00:30.6]} 59... Kf4 {[%clk 0:00:21]} 60. Bd6+ {[%clk 0:00:30.8]} 60... Kf5
{[%clk 0:00:22.4]} 61. Ke3 {[%clk 0:00:29.7]} 61... Be1 {[%clk 0:00:21.8]} 62.
f4 {[%clk 0:00:30]} 62... Bg3 {[%clk 0:00:15.1]} 63. Kf3 {[%clk 0:00:26.9]}
63... Be1 {[%clk 0:00:15.5]} 64. Be5 {[%clk 0:00:27.3]} 64... Bd2 {[%clk
0:00:15.3]} 65. Bd6 {[%clk 0:00:26.4]} 65... Be1 {[%clk 0:00:16.3]} 66. Bc7
{[%clk 0:00:23.6]} 66... Bd2 {[%clk 0:00:17.4]} 67. Bb8 {[%clk 0:00:22.9]} 67...
Bc3 {[%clk 0:00:18.6]} 68. Be5 {[%clk 0:00:23.4]} 68... Bd2 {[%clk 0:00:20]} 69.
Bd6 {[%clk 0:00:23.4]} 69... Bc3 {[%clk 0:00:21]} 70. Ke3 {[%clk 0:00:24.6]}
70... Be1 {[%clk 0:00:21.6]} 71. Be5 {[%clk 0:00:23.9]} 71... Bc3 {[%clk
0:00:22.2]} 72. Bd6 {[%clk 0:00:21]} 72... Be1 {[%clk 0:00:22.3]} 73. Be5 {[%clk
0:00:20.8]} 73... Bc3 {[%clk 0:00:22.8]} 74. Kf3 {[%clk 0:00:21.3]} 74... Bd2
{[%clk 0:00:23.3]} 75. Bd6 {[%clk 0:00:21.2]} 75... Bc3 {[%clk 0:00:23.8]} 76.
Ke3 {[%clk 0:00:22.6]} 76... Be1 {[%clk 0:00:24.4]} 77. Bc7 {[%clk 0:00:23.5]}
77... Bc3 {[%clk 0:00:25.1]} 78. Bb8 {[%clk 0:00:24.9]} 78... Be1 {[%clk
0:00:25.7]} 79. Bc7 {[%clk 0:00:26.5]} 79... Bc3 {[%clk 0:00:26.7]} 80. Bd6
{[%clk 0:00:28.1]} 80... Ba5 {[%clk 0:00:27.5]} 81. Bb8 {[%clk 0:00:28.6]} 81...
Be1 {[%clk 0:00:28]} 82. Be5 {[%clk 0:00:29.8]} 82... Bb4 {[%clk 0:00:28.8]} 83.
Bc7 {[%clk 0:00:29.8]} 83... Bc3 {[%clk 0:00:29.6]} 84. Bd6 {[%clk 0:00:29.7]}
1/2-1/2

[Event "*** Titled Tuesday 3|2 Blitz (Early)"]
[Site "Chess.com"]
[Date "2016.12.06"]
[Round "2"]
[White "Mepetmepe"]
[Black "FrankieJay"]
[Result "0-1"]
[WhiteElo "2302"]
[BlackElo "2220"]
[TimeControl "180+2"]
[EndTime "11:25:25 PST"]
[Termination "FrankieJay won by resignation"]

1. Nf3 {[%clk 0:03:02]} 1... Nf6 {[%clk 0:03:00.8]} 2. c4 {[%clk 0:03:02.4]}
2... g6 {[%clk 0:03:02.1]} 3. b3 {[%clk 0:02:59.8]} 3... Bg7 {[%clk 0:03:03]} 4.
Bb2 {[%clk 0:03:01.7]} 4... O-O {[%clk 0:03:04.6]} 5. e3 {[%clk 0:03:03.1]} 5...
c5 {[%clk 0:02:54.8]} 6. Be2 {[%clk 0:03:04.2]} 6... Nc6 {[%clk 0:02:54.5]} 7.
O-O {[%clk 0:03:04.8]} 7... a6 {[%clk 0:02:53.3]} 8. d4 {[%clk 0:03:05.8]} 8...
Ne4 {[%clk 0:02:50.1]} 9. Nbd2 {[%clk 0:03:05.2]} 9... Nxd2 {[%clk 0:02:47.8]}
10. Qxd2 {[%clk 0:03:07.1]} 10... cxd4 {[%clk 0:02:48.5]} 11. Nxd4 {[%clk
0:03:08.5]} 11... Nxd4 {[%clk 0:02:43.7]} 12. Bxd4 {[%clk 0:03:10.4]} 12... d6
{[%clk 0:02:44]} 13. Bf3 {[%clk 0:03:11.4]} 13... Qc7 {[%clk 0:02:42.9]} 14.
Bxg7 {[%clk 0:03:12.2]} 14... Kxg7 {[%clk 0:02:44.1]} 15. h4 {[%clk 0:03:12.3]}
15... h5 {[%clk 0:02:38.6]} 16. Rad1 {[%clk 0:03:12.6]} 16... Be6 {[%clk
0:02:37.2]} 17. Qd4+ {[%clk 0:03:11.5]} 17... Kh7 {[%clk 0:02:37.8]} 18. Qf4
{[%clk 0:03:12.8]} 18... Rac8 {[%clk 0:02:29.6]} 19. Bd5 {[%clk 0:03:13.7]}
19... Qd7 {[%clk 0:02:21.2]} 20. Bxe6 {[%clk 0:03:08.4]} 20... Qxe6 {[%clk
0:02:22.4]} 21. Rd5 {[%clk 0:03:09.4]} 21... b5 {[%clk 0:02:14.4]} 22. Rfd1
{[%clk 0:02:39]} 22... bxc4 {[%clk 0:02:15.4]} 23. bxc4 {[%clk 0:02:40.9]} 23...
Rc7 {[%clk 0:02:11.9]} 24. R1d4 {[%clk 0:02:40.3]} 24... Rb8 {[%clk 0:01:26.2]}
25. Re4 {[%clk 0:02:40.5]} 25... Rxc4 {[%clk 0:01:27.5]} 26. Rxe6 {[%clk
0:02:31]} 26... Rxf4 {[%clk 0:01:28.2]} 27. Rxe7 {[%clk 0:02:32.4]} 27... Rb1+
{[%clk 0:01:29.6]} 28. Kh2 {[%clk 0:02:33.1]} 28... Rxf2 {[%clk 0:01:31.5]} 29.
Ra7 {[%clk 0:02:19.4]} 29... Rb5 {[%clk 0:01:17.9]} 30. Kg3 {[%clk 0:02:12.1]}
30... Rxd5 {[%clk 0:01:17.5]} 31. Kxf2 {[%clk 0:02:12.6]} 31... Rd2+ {[%clk
0:01:19]} 32. Kf3 {[%clk 0:02:13.8]} 32... Rxa2 {[%clk 0:01:20.9]} 33. Rxf7+
{[%clk 0:02:14.7]} 33... Kh6 {[%clk 0:01:21.8]} 34. Rd7 {[%clk 0:02:16.6]} 34...
Rd2 {[%clk 0:01:18]} 35. Ra7 {[%clk 0:02:17]} 35... Ra2 {[%clk 0:00:56.5]} 36.
Rd7 {[%clk 0:02:18.1]} 36... Rd2 {[%clk 0:00:57.5]} 37. Ra7 {[%clk 0:02:16.3]}
37... Ra2 {[%clk 0:00:58.2]} 38. g3 {[%clk 0:02:16.7]} 38... a5 {[%clk
0:00:55.9]} 39. Rd7 {[%clk 0:02:15.2]} 39... Rd2 {[%clk 0:00:55.9]} 40. Ra7
{[%clk 0:02:16.2]} 40... Rd5 {[%clk 0:00:57]} 41. Ra6 {[%clk 0:02:17.2]} 41...
Kg7 {[%clk 0:00:55.5]} 42. Ke4 {[%clk 0:02:18.5]} 42... Re5+ {[%clk 0:00:54.5]}
43. Kf4 {[%clk 0:02:19.9]} 43... Rf5+ {[%clk 0:00:53.5]} 44. Ke4 {[%clk
0:02:21.3]} 44... d5+ {[%clk 0:00:55]} 45. Kd4 {[%clk 0:02:20]} 45... Rf3 {[%clk
0:00:56.1]} 46. Rxa5 {[%clk 0:02:18.4]} 46... Rxg3 {[%clk 0:00:57.4]} 47. Rxd5
{[%clk 0:01:55.1]} 47... Rg4+ {[%clk 0:00:58.3]} 48. Ke5 {[%clk 0:01:52]} 48...
Rxh4 {[%clk 0:01:00.2]} 49. Rd7+ {[%clk 0:01:52.8]} 49... Kh6 {[%clk 0:01:01.6]}
50. e4 {[%clk 0:01:53.2]} 50... Rh1 {[%clk 0:01:02.5]} 51. Ke6 {[%clk
0:01:51.5]} 51... Re1 {[%clk 0:01:02.9]} 52. e5 {[%clk 0:01:52.7]} 52... Kg5
{[%clk 0:01:01.2]} 53. Rd5 {[%clk 0:01:39.4]} 53... h4 {[%clk 0:01:01]} 54. Kf7
{[%clk 0:01:40.6]} 54... Rf1+ {[%clk 0:00:55.9]} 55. Ke7 {[%clk 0:01:15.7]}
55... Re1 {[%clk 0:00:45.9]} 56. e6+ {[%clk 0:01:13.8]} 56... Kf4 {[%clk
0:00:45.1]} 57. Kf6 {[%clk 0:01:11.5]} 57... h3 {[%clk 0:00:39.8]} 58. e7 {[%clk
0:01:01.4]} 58... h2 {[%clk 0:00:33.8]} 59. Rd4+ {[%clk 0:00:56.5]} 59... Kg3
{[%clk 0:00:24.1]} 60. Rd3+ {[%clk 0:00:54.9]} 60... Kg2 {[%clk 0:00:25.1]} 61.
Rd2+ {[%clk 0:00:50.5]} 61... Kg1 {[%clk 0:00:26.4]} 62. Rd1 {[%clk 0:00:46.1]}
62... Rxd1 {[%clk 0:00:20.6]} 63. e8=Q {[%clk 0:00:47.6]} 63... Rf1+ {[%clk
0:00:21.3]} 64. Kg7 {[%clk 0:00:25.7]} 64... h1=Q {[%clk 0:00:21.9]} 65. Qe3+
{[%clk 0:00:26.8]} 65... Kh2 {[%clk 0:00:22.3]} 66. Qh6+ {[%clk 0:00:26.5]}
66... Kg2 {[%clk 0:00:23.6]} 67. Qg5+ {[%clk 0:00:27.5]} 67... Kf2 {[%clk
0:00:23.8]} 68. Qd2+ {[%clk 0:00:28.5]} 68... Kf3 {[%clk 0:00:23.2]} 69. Qd5+
{[%clk 0:00:29.4]} 69... Kf4 {[%clk 0:00:24.3]} 70. Qd6+ {[%clk 0:00:29.1]}
70... Kg5 {[%clk 0:00:25.6]} 71. Qxg6+ {[%clk 0:00:29.1]} 71... Kf4 {[%clk
0:00:25]} 72. Qf6+ {[%clk 0:00:29.4]} 72... Kg3 {[%clk 0:00:26.1]} 73. Qg5+
{[%clk 0:00:30.2]} 73... Kh2 {[%clk 0:00:26.1]} 74. Qh4+ {[%clk 0:00:30.6]}
74... Kg1 {[%clk 0:00:27.5]} 75. Qd4+ {[%clk 0:00:30.8]} 75... Rf2 {[%clk
0:00:28.9]} 76. Qd1+ {[%clk 0:00:31.1]} 76... Kg2 {[%clk 0:00:29]} 77. Qd5+
{[%clk 0:00:31.7]} 77... Rf3 {[%clk 0:00:30.6]} 78. Qd2+ {[%clk 0:00:31.6]}
78... Kg3 {[%clk 0:00:32.1]} 79. Qg5+ {[%clk 0:00:32.2]} 79... Kh2 {[%clk
0:00:28.1]} 80. Qh5+ {[%clk 0:00:30.6]} 80... Kg1 {[%clk 0:00:29.1]} 81. Qc5+
{[%clk 0:00:29.8]} 81... Rf2 {[%clk 0:00:28.8]} 82. Qc1+ {[%clk 0:00:30.2]}
82... Kh2 {[%clk 0:00:25.4]} 83. Qh6+ {[%clk 0:00:29.6]} 83... Kg1 {[%clk
0:00:23.3]} 84. Qc1+ {[%clk 0:00:30.3]} 84... Rf1 {[%clk 0:00:24.6]} 85. Qe3+
{[%clk 0:00:30.2]} 85... Kg2 {[%clk 0:00:23.2]} 86. Qe4+ {[%clk 0:00:29.4]}
86... Kg3 {[%clk 0:00:23]} 87. Qe5+ {[%clk 0:00:29.5]} 87... Rf4 {[%clk
0:00:22.1]} 88. Qe3+ {[%clk 0:00:28]} 88... Qf3 {[%clk 0:00:23.1]} 89. Qe1+
{[%clk 0:00:29.2]} 89... Kh3 {[%clk 0:00:22.8]} 90. Qe6+ {[%clk 0:00:27.9]}
90... Qg4+ {[%clk 0:00:23.8]} 91. Qg6 {[%clk 0:00:27.9]} 91... Qxg6+ {[%clk
0:00:24.2]} 92. Kxg6 {[%clk 0:00:29.8]} 92... Kg4 {[%clk 0:00:26.1]} 0-1

[Event "*** Titled Tuesday 3|2 Blitz (Early)"]
[Site "Chess.com"]
[Date "2016.12.06"]
[Round "3"]
[White "VSERGUEI"]
[Black "Genghis_K"]
[Result "1-0"]
[WhiteElo "2614"]
[BlackElo "2673"]
[TimeControl "180+2"]
[EndTime "11:30:29 PST"]
[Termination "VSERGUEI won by resignation"]

1. d4 {[%clk 0:02:57.3]} 1... Nf6 {[%clk 0:03:01]} 2. c4 {[%clk 0:02:57.6]} 2...
e6 {[%clk 0:03:02.6]} 3. Nc3 {[%clk 0:02:58.1]} 3... Bb4 {[%clk 0:03:00.4]} 4.
f3 {[%clk 0:02:58.9]} 4... d5 {[%clk 0:02:54.1]} 5. a3 {[%clk 0:02:58.4]} 5...
Be7 {[%clk 0:02:51.7]} 6. e4 {[%clk 0:02:56.9]} 6... dxe4 {[%clk 0:02:53.2]} 7.
fxe4 {[%clk 0:02:57.5]} 7... e5 {[%clk 0:02:54.5]} 8. d5 {[%clk 0:02:58.4]} 8...
Bc5 {[%clk 0:02:51.3]} 9. Nf3 {[%clk 0:02:58.8]} 9... Bg4 {[%clk 0:02:41.4]} 10.
h3 {[%clk 0:02:58.6]} 10... Bxf3 {[%clk 0:02:40.4]} 11. Qxf3 {[%clk 0:02:58.6]}
11... Nbd7 {[%clk 0:02:40.6]} 12. Bd3 {[%clk 0:02:58.7]} 12... O-O {[%clk
0:02:41.5]} 13. Bd2 {[%clk 0:02:58.9]} 13... Bd4 {[%clk 0:02:36.1]} 14. O-O-O
{[%clk 0:02:58.7]} 14... c6 {[%clk 0:02:35.5]} 15. Kb1 {[%clk 0:02:58.3]} 15...
cxd5 {[%clk 0:02:29.9]} 16. exd5 {[%clk 0:02:53.5]} 16... Rc8 {[%clk 0:02:23]}
17. g4 {[%clk 0:02:45.4]} 17... Re8 {[%clk 0:02:09.5]} 18. g5 {[%clk 0:02:30.4]}
18... e4 {[%clk 0:02:09.7]} 19. Nxe4 {[%clk 0:02:15.4]} 19... Nxe4 {[%clk
0:02:11.1]} 20. Bxe4 {[%clk 0:02:14.9]} 20... Ne5 {[%clk 0:02:12.7]} 21. Bxh7+
{[%clk 0:02:11.6]} 21... Kxh7 {[%clk 0:02:06.7]} 22. Qe4+ {[%clk 0:02:12.1]}
22... Kg8 {[%clk 0:02:07.5]} 23. Qxd4 {[%clk 0:02:11.7]} 23... Rxc4 {[%clk
0:02:08]} 24. Qxa7 {[%clk 0:02:03.9]} 24... Qxd5 {[%clk 0:02:07.7]} 25. Bc3
{[%clk 0:01:58.4]} 25... Qd3+ {[%clk 0:01:55.9]} 26. Rxd3 {[%clk 0:01:57]} 1-0

[Event "*** Titled Tuesday 3|2 Blitz (Early)"]
[Site "Chess.com"]
[Date "2016.12.06"]
[Round "3"]
[White "ulises2013"]
[Black "LawrenceTrent"]
[Result "0-1"]
[WhiteElo "2270"]
[BlackElo "2446"]
[TimeControl "180+2"]
[EndTime "11:31:01 PST"]
[Termination "LawrenceTrent won by resignation"]

1. e4 {[%clk 0:03:02]} 1... c5 {[%clk 0:02:58.2]} 2. Nf3 {[%clk 0:03:03.4]} 2...
d6 {[%clk 0:02:59.3]} 3. d4 {[%clk 0:03:04.2]} 3... cxd4 {[%clk 0:03:00.8]} 4.
Nxd4 {[%clk 0:03:06.1]} 4... Nf6 {[%clk 0:03:02.2]} 5. Nc3 {[%clk 0:03:05.4]}
5... g6 {[%clk 0:03:03.4]} 6. f4 {[%clk 0:03:03.4]} 6... Nc6 {[%clk 0:03:02.7]}
7. Be3 {[%clk 0:03:03.1]} 7... Ng4 {[%clk 0:02:56.5]} 8. Bg1 {[%clk 0:03:03.7]}
8... Bg7 {[%clk 0:02:56.4]} 9. h3 {[%clk 0:03:01.7]} 9... Nxd4 {[%clk
0:02:48.1]} 10. Bxd4 {[%clk 0:03:03.5]} 10... e5 {[%clk 0:02:36.9]} 11. Bb5+
{[%clk 0:02:50.3]} 11... Kf8 {[%clk 0:02:34.7]} 12. hxg4 {[%clk 0:02:20.8]}
12... exd4 {[%clk 0:02:34.7]} 13. Nd5 {[%clk 0:02:09.6]} 13... Qa5+ {[%clk
0:02:34.7]} 14. Kf2 {[%clk 0:01:58.4]} 14... Qxb5 {[%clk 0:02:35]} 15. Nc7
{[%clk 0:01:56.5]} 15... Qc5 {[%clk 0:02:33.7]} 16. Nxa8 {[%clk 0:01:53.2]}
16... d3+ {[%clk 0:02:34.5]} 17. Kf3 {[%clk 0:01:52.8]} 17... dxc2 {[%clk
0:02:27.1]} 18. Qd5 {[%clk 0:01:43.5]} 18... Qxd5 {[%clk 0:02:19.5]} 19. exd5
{[%clk 0:01:45.4]} 19... Bxb2 {[%clk 0:02:20]} 20. Rac1 {[%clk 0:01:43.7]} 20...
Bxc1 {[%clk 0:02:20.6]} 21. Rxc1 {[%clk 0:01:44.1]} 21... h5 {[%clk 0:02:21.8]}
22. Rxc2 {[%clk 0:01:35.3]} 22... Bxg4+ {[%clk 0:02:21.7]} 23. Kg3 {[%clk
0:01:32.5]} 23... Kg7 {[%clk 0:02:21.1]} 24. Nc7 {[%clk 0:01:33.1]} 24... Rc8
{[%clk 0:02:21.3]} 25. Kf2 {[%clk 0:01:12]} 25... Kf6 {[%clk 0:02:13.2]} 26. g3
{[%clk 0:01:08.8]} 26... a6 {[%clk 0:02:11.8]} 27. Ke3 {[%clk 0:01:02.5]} 27...
Ke7 {[%clk 0:02:09.9]} 0-1

[Event "*** Titled Tuesday 3|2 Blitz (Early)"]
[Site "Chess.com"]
[Date "2016.12.06"]
[Round "3"]
[White "VladDobrov"]
[Black "poummba"]
[Result "1-0"]
[WhiteElo "2605"]
[BlackElo "2395"]
[TimeControl "180+2"]
[EndTime "11:31:40 PST"]
[Termination "VladDobrov won by resignation"]

1. d4 {[%clk 0:02:53.6]} 1... g6 {[%clk 0:03:01.1]} 2. c4 {[%clk 0:02:55.5]}
2... Bg7 {[%clk 0:03:02.6]} 3. Nc3 {[%clk 0:02:56.5]} 3... d6 {[%clk 0:03:04.2]}
4. Nf3 {[%clk 0:02:56.8]} 4... e5 {[%clk 0:03:05.3]} 5. g3 {[%clk 0:02:56.1]}
5... exd4 {[%clk 0:03:04.7]} 6. Nxd4 {[%clk 0:02:56.2]} 6... Ne7 {[%clk
0:03:05.7]} 7. Bg2 {[%clk 0:02:56.7]} 7... Nbc6 {[%clk 0:03:07.4]} 8. e3 {[%clk
0:02:57.4]} 8... O-O {[%clk 0:03:06.9]} 9. O-O {[%clk 0:02:57.5]} 9... Nxd4
{[%clk 0:03:08.3]} 10. exd4 {[%clk 0:02:58.6]} 10... Nf5 {[%clk 0:03:10.2]} 11.
d5 {[%clk 0:02:50.3]} 11... Re8 {[%clk 0:03:02]} 12. h4 {[%clk 0:02:49.9]} 12...
h6 {[%clk 0:02:58.6]} 13. Bf4 {[%clk 0:02:43.1]} 13... g5 {[%clk 0:02:59.2]} 14.
hxg5 {[%clk 0:02:43.5]} 14... hxg5 {[%clk 0:03:01.1]} 15. Bd2 {[%clk 0:02:44.5]}
15... g4 {[%clk 0:02:51.8]} 16. Ne4 {[%clk 0:02:38]} 16... Nd4 {[%clk
0:02:49.8]} 17. Bg5 {[%clk 0:02:36.1]} 17... Qd7 {[%clk 0:02:40.6]} 18. Re1
{[%clk 0:02:19.9]} 18... f5 {[%clk 0:02:21.9]} 19. Nf6+ {[%clk 0:02:16.8]} 19...
Bxf6 {[%clk 0:02:23.2]} 20. Rxe8+ {[%clk 0:02:04.2]} 20... Qxe8 {[%clk
0:02:24.3]} 21. Bxf6 {[%clk 0:02:05.7]} 21... Nf3+ {[%clk 0:02:10.7]} 22. Bxf3
{[%clk 0:02:06]} 22... gxf3 {[%clk 0:02:12.6]} 23. Bc3 {[%clk 0:01:50.8]} 23...
Bd7 {[%clk 0:01:03.7]} 24. Qd4 {[%clk 0:01:45.8]} 24... Qg6 {[%clk 0:01:04.8]}
25. Qh8+ {[%clk 0:01:36.6]} 25... Kf7 {[%clk 0:01:06.2]} 26. Qxa8 {[%clk
0:01:37.3]} 26... f4 {[%clk 0:01:00.5]} 27. Qd8 {[%clk 0:01:36.9]} 27... fxg3
{[%clk 0:00:45.7]} 28. Qxd7+ {[%clk 0:01:37.4]} 28... Kg8 {[%clk 0:00:43.9]} 29.
Qe6+ {[%clk 0:01:37.6]} 1-0

[Event "*** Titled Tuesday 3|2 Blitz (Early)"]
[Site "Chess.com"]
[Date "2016.12.06"]
[Round "3"]
[White "avto24"]
[Black "Rumpel-VK"]
[Result "0-1"]
[WhiteElo "2299"]
[BlackElo "2461"]
[TimeControl "180+2"]
[EndTime "11:31:41 PST"]
[Termination "Rumpel-VK won by resignation"]

1. e4 {[%clk 0:03:02]} 1... d6 {[%clk 0:03:00.8]} 2. d4 {[%clk 0:03:02]} 2...
Nf6 {[%clk 0:03:02.2]} 3. Nc3 {[%clk 0:03:00.6]} 3... e5 {[%clk 0:03:03.6]} 4.
Nf3 {[%clk 0:02:53.1]} 4... Nbd7 {[%clk 0:03:04.1]} 5. Bc4 {[%clk 0:02:51.6]}
5... Be7 {[%clk 0:03:04.3]} 6. O-O {[%clk 0:02:50]} 6... O-O {[%clk 0:03:04.9]}
7. Re1 {[%clk 0:02:49.4]} 7... c6 {[%clk 0:03:05.3]} 8. a4 {[%clk 0:02:50.1]}
8... exd4 {[%clk 0:03:05.9]} 9. Nxd4 {[%clk 0:02:49.9]} 9... Ne5 {[%clk
0:03:07.8]} 10. Ba2 {[%clk 0:02:45.8]} 10... Re8 {[%clk 0:03:08.6]} 11. h3
{[%clk 0:02:45.2]} 11... Bd7 {[%clk 0:03:08.6]} 12. f4 {[%clk 0:02:43.7]} 12...
Ng6 {[%clk 0:03:09.1]} 13. Be3 {[%clk 0:02:39]} 13... Qc7 {[%clk 0:03:05.6]} 14.
Qf3 {[%clk 0:02:36.7]} 14... Rad8 {[%clk 0:03:00.9]} 15. Rad1 {[%clk 0:02:35.4]}
15... a6 {[%clk 0:03:00.9]} 16. Bf2 {[%clk 0:02:08.1]} 16... b5 {[%clk
0:02:55.9]} 17. axb5 {[%clk 0:02:08.3]} 17... axb5 {[%clk 0:02:56.7]} 18. h4
{[%clk 0:02:00.9]} 18... Bg4 {[%clk 0:02:51.3]} 19. Qg3 {[%clk 0:01:54.3]} 19...
Bxd1 {[%clk 0:02:50.1]} 20. Rxd1 {[%clk 0:01:56]} 20... b4 {[%clk 0:02:48.3]}
21. h5 {[%clk 0:01:38]} 21... Nxh5 {[%clk 0:02:47.2]} 22. Qf3 {[%clk 0:01:38.6]}
22... bxc3 {[%clk 0:02:44.5]} 23. Qxh5 {[%clk 0:01:37]} 23... cxb2 {[%clk
0:02:43]} 24. Nf5 {[%clk 0:01:35.4]} 24... Bf6 {[%clk 0:02:37.3]} 25. Qf3 {[%clk
0:01:02.6]} 25... Qa5 {[%clk 0:02:29.6]} 26. Qb3 {[%clk 0:00:57.5]} 26... d5
{[%clk 0:02:00.9]} 27. e5 {[%clk 0:00:55.4]} 27... Rb8 {[%clk 0:01:56.4]} 0-1

[Event "*** Titled Tuesday 3|2 Blitz (Early)"]
[Site "Chess.com"]
[Date "2016.12.06"]
[Round "3"]
[White "Salem-AR"]
[Black "AdrianaNikolova"]
[Result "1-0"]
[WhiteElo "2680"]
[BlackElo "2237"]
[TimeControl "180+2"]
[EndTime "11:31:49 PST"]
[Termination "Salem-AR won on time"]

1. d4 {[%clk 0:03:02]} 1... d5 {[%clk 0:02:52.3]} 2. c4 {[%clk 0:03:03.1]} 2...
c6 {[%clk 0:02:52.9]} 3. Nf3 {[%clk 0:03:04.7]} 3... Nf6 {[%clk 0:02:53.2]} 4.
Nc3 {[%clk 0:03:06.3]} 4... dxc4 {[%clk 0:02:54.1]} 5. e4 {[%clk 0:03:07.7]}
5... b5 {[%clk 0:02:54]} 6. e5 {[%clk 0:03:09.2]} 6... Nd5 {[%clk 0:02:51.5]} 7.
a4 {[%clk 0:03:11]} 7... Nxc3 {[%clk 0:02:36.5]} 8. bxc3 {[%clk 0:03:11.9]} 8...
Bf5 {[%clk 0:02:17.6]} 9. Nh4 {[%clk 0:03:12.3]} 9... Be4 {[%clk 0:02:16.1]} 10.
e6 {[%clk 0:03:13.1]} 10... Qd5 {[%clk 0:02:07.4]} 11. exf7+ {[%clk 0:03:12.4]}
11... Qxf7 {[%clk 0:02:09.3]} 12. Qg4 {[%clk 0:03:09.1]} 12... Qd5 {[%clk
0:01:44.7]} 13. f3 {[%clk 0:03:08.8]} 13... Bd3 {[%clk 0:01:39.1]} 14. Qc8+
{[%clk 0:03:09.9]} 14... Qd8 {[%clk 0:01:20.3]} 15. Qb7 {[%clk 0:03:10.7]} 15...
Nd7 {[%clk 0:01:21]} 16. Qxc6 {[%clk 0:03:11.4]} 16... b4 {[%clk 0:01:09.6]} 17.
cxb4 {[%clk 0:02:39.6]} 17... Rc8 {[%clk 0:01:05.9]} 18. Qe6 {[%clk 0:02:35.7]}
18... Nf6 {[%clk 0:01:01.8]} 19. Nf5 {[%clk 0:02:28]} 19... g6 {[%clk
0:00:33.3]} 20. Nd6+ {[%clk 0:02:26]} 20... Qxd6 {[%clk 0:00:32.9]} 21. Qxc8+
{[%clk 0:02:27.9]} 21... Kf7 {[%clk 0:00:34.2]} 22. Bxd3 {[%clk 0:02:29.6]}
22... cxd3 {[%clk 0:00:33.5]} 23. Qc4+ {[%clk 0:02:31.2]} 23... e6 {[%clk
0:00:32.4]} 24. O-O {[%clk 0:02:29.6]} 24... Qxb4 {[%clk 0:00:28.2]} 25. Qxd3
{[%clk 0:02:28.9]} 25... Bg7 {[%clk 0:00:28.1]} 26. Rb1 {[%clk 0:02:28.5]} 26...
Qxa4 {[%clk 0:00:28.7]} 27. Rb7+ {[%clk 0:02:29.4]} 27... Nd7 {[%clk 0:00:27.5]}
28. d5 {[%clk 0:02:19.3]} 28... Bd4+ {[%clk 0:00:25.4]} 29. Be3 {[%clk
0:02:18.3]} 29... Bxe3+ {[%clk 0:00:16.3]} 30. Qxe3 {[%clk 0:02:20.2]} 30...
exd5 {[%clk 0:00:16.2]} 31. Re1 {[%clk 0:02:21.9]} 1-0